bitfinex/quotes_BTCUSD_20250607
["timestamp","ask_amount","ask_price","bid_price","bid_amount"]
[1749268118665,0.03254788,105000.0,104990.0,2.16953599]
[1749268119014,0.03254788,105000.0,104990.0,2.16353599]
[1749268119215,0.03254788,105000.0,104990.0,2.16853599]
[1749268119524,0.03254788,105000.0,104990.0,2.16845599]
[1749268120303,0.03254788,105000.0,104990.0,2.17245599]
[1749268136284,0.01664788,105000.0,104990.0,2.17245599]
[1749268136471,0.03164788,105000.0,104990.0,2.17245599]
[1749268144224,0.01664788,105000.0,104990.0,2.17245599]
[1749268144749,0.03174788,105000.0,104990.0,2.17245599]
[1749268148915,0.02905739,105000.0,104990.0,2.17245599]
[1749268153174,0.02905739,105000.0,104990.0,1.56594686]
[1749268154149,0.02905739,105000.0,104990.0,1.18574686]
[1749268154287,0.02905739,105000.0,104990.0,1.56594686]
[1749268155108,0.02905739,105000.0,104990.0,2.11496172]
[1749268155316,0.02905739,105000.0,104990.0,1.56594686]
[1749268162343,0.02905739,105000.0,104990.0,1.18574686]
[1749268162577,0.02905739,105000.0,104990.0,1.56594686]
[1749268169326,0.02713739,105000.0,104990.0,1.56594686]
[1749268175175,0.02713739,105000.0,104990.0,2.11487401]
[1749268177787,0.02713739,105000.0,104990.0,1.56594686]
[1749268177998,0.02713739,105000.0,104990.0,2.11487401]
[1749268178400,0.02713739,105000.0,104990.0,1.56594686]
[1749268178527,0.02713739,105000.0,104990.0,2.11487401]
[1749268179133,0.02713739,105000.0,104990.0,1.56594686]
[1749268179344,0.02713739,105000.0,104990.0,2.11487401]
[1749268181457,0.02713739,105000.0,104990.0,1.73467401]
[1749268181683,0.02713739,105000.0,104990.0,2.11483401]
[1749268182559,0.58558753,105000.0,104990.0,0.32446686]
[1749268182764,0.57606454,105000.0,104990.0,1.22598686]
[1749268183429,0.58558753,105000.0,104990.0,1.22198686]
[1749268183829,0.58558753,105000.0,104990.0,1.22498686]
[1749268184044,0.57606454,105000.0,104990.0,1.22498686]
[1749268184263,0.57606454,105000.0,104990.0,1.21998686]
[1749268184694,0.57606454,105000.0,104990.0,1.22298686]
[1749268186784,0.58558753,105000.0,104990.0,1.22298686]
[1749268187941,0.57606454,105000.0,104990.0,1.22298686]
[1749268188707,0.58558762,105000.0,104990.0,1.22298686]
[1749268188840,0.57606454,105000.0,104990.0,1.13382686]
[1749268189043,0.58558753,105000.0,104990.0,1.22298686]
[1749268189527,0.59522459,105000.0,104990.0,1.22298686]
[1749268189972,0.60474767,105000.0,104990.0,1.22298686]
[1749268190265,0.59522459,105000.0,104990.0,1.22298686]
[1749268190556,0.5857016,105000.0,104990.0,1.22298686]
[1749268190757,0.59522468,105000.0,104990.0,1.22298686]
[1749268191276,0.5857016,105000.0,104990.0,1.22298686]
[1749268191474,0.59522468,105000.0,104990.0,1.22298686]
[1749268192142,0.59522459,105000.0,104990.0,1.22298686]
[1749268195805,1.1631988,105000.0,104990.0,0.30241843]
[1749268196019,1.35367499,105000.0,104990.0,1.22298713]
[1749268196241,1.35367499,105000.0,104990.0,1.2325113]
[1749268196366,1.17272251,105000.0,104990.0,1.2325113]
[1749268196718,1.1631988,105000.0,104990.0,1.24203538]
[1749268197030,1.1631988,105000.0,104990.0,1.23903538]
[1749268197315,0.61427165,105000.0,104990.0,1.23803538]
[1749268197690,1.1631988,105000.0,104990.0,1.23903538]
[1749268198400,1.1631988,105000.0,104990.0,1.23893363]
[1749268198728,1.16319871,105000.0,104990.0,1.23893363]
[1749268198886,0.61427156,105000.0,104990.0,1.23893363]
[1749268199633,0.61427156,105000.0,104990.0,0.85877363]
[1749268199840,0.61427156,105000.0,104990.0,1.23893363]
[1749268200165,0.62379518,105000.0,104990.0,1.23893363]
[1749268202178,0.62379518,105000.0,104990.0,1.22940955]
[1749268202385,0.62379518,105000.0,104990.0,1.23893363]
[1749268202540,0.63331889,105000.0,104990.0,1.23893363]
[1749268202753,0.63331889,105000.0,104990.0,1.22940955]
[1749268202955,0.62379518,105000.0,104990.0,1.23893363]
[1749268203155,0.61427156,105000.0,104990.0,1.23893363]
[1749268203383,0.62379518,105000.0,104990.0,1.23893363]
[1749268203558,0.63331889,105000.0,104990.0,1.23893363]
[1749268204111,1.18224604,105000.0,104990.0,1.22940955]
[1749268204276,1.16319925,105000.0,104990.0,1.22940955]
[1749268204487,1.16319925,105000.0,104990.0,1.23893363]
[1749268204736,0.62379581,105000.0,104990.0,1.23893363]
[1749268204949,1.3536758,105000.0,104990.0,1.20079668]
[1749268205118,1.3536758,105000.0,104990.0,0.83020121]
[1749268205288,1.3631996,105000.0,104990.0,1.22936982]
[1749268205991,0.2653453,105000.0,104990.0,1.22936982]
[1749268206188,1.3631996,105000.0,104990.0,1.22936982]
[1749268207541,1.35367607,105000.0,104990.0,1.21984556]
[1749268207782,1.35367607,105000.0,104990.0,0.83972556]
[1749268207956,1.35367607,105000.0,104990.0,1.21984556]
[1749268209284,1.16319988,105000.0,104990.0,1.22936982]
[1749268209481,1.16319988,105000.0,104990.0,1.23889399]
[1749268211074,1.15367608,105000.0,104990.0,1.2389952]
[1749268211271,1.15367608,105000.0,104990.0,0.8588752]
[1749268211489,1.15367608,105000.0,104990.0,1.2389952]
[1749268212104,1.16319988,105000.0,104990.0,1.22947112]
[1749268212432,1.16319988,105000.0,104990.0,1.21994695]
[1749268212646,1.16319988,105000.0,104990.0,1.22947112]
[1749268213470,1.15367608,105000.0,104990.0,1.2389952]
[1749268214691,1.15367608,105000.0,104990.0,1.21994695]
[1749268214856,1.34415227,105000.0,104990.0,1.19137381]
[1749268215066,1.34415227,105000.0,104990.0,1.21042296]
[1749268215219,1.34415227,105000.0,104990.0,1.21994731]
[1749268215421,1.15367608,105000.0,104990.0,1.22947139]
[1749268215625,1.34415227,105000.0,104990.0,1.21994731]
[1749268215933,1.34415227,105000.0,104990.0,1.21042296]
[1749268216180,1.34415227,105000.0,104990.0,1.21994722]
[1749268217605,1.35367607,105000.0,104990.0,1.22947139]
[1749268218116,1.16319988,105000.0,104990.0,1.22947139]
[1749268219037,1.15367608,105000.0,104990.0,1.23899547]
[1749268220261,1.16319988,105000.0,104990.0,1.22947139]
[1749268220673,1.16319988,105000.0,104990.0,1.21994722]
[1749268220810,1.35367607,105000.0,104990.0,0.91942314]
[1749268221020,1.35367607,105000.0,104990.0,1.21990758]
[1749268221238,1.16319988,105000.0,104990.0,1.22943193]
[1749268221407,1.35367607,105000.0,104990.0,1.22943193]
[1749268221612,1.16319988,105000.0,104990.0,1.23895565]
[1749268223507,1.16319988,105000.0,104990.0,1.22943148]
[1749268225370,1.35367607,105000.0,104990.0,1.21038296]
[1749268225725,1.35367607,105000.0,104990.0,1.2199074]
[1749268226211,1.35367607,105000.0,104990.0,1.22943166]
[1749268226643,1.35367607,105000.0,104990.0,0.84935166]
[1749268226874,1.35367607,105000.0,104990.0,1.22943166]
[1749268227807,1.35367607,105000.0,104990.0,1.2199074]
[1749268228017,1.35367607,105000.0,104990.0,0.90989834]
[1749268228156,1.35367607,105000.0,104990.0,1.21038278]
[1749268229659,1.34415245,105000.0,104990.0,1.21038278]
[1749268230416,1.34415245,105000.0,104990.0,1.21990713]
[1749268230809,0.05582196,105000.0,104990.0,1.22943121]
[1749268231006,0.60713045,105000.0,104990.0,1.22943121]
[1749268231213,0.60474911,105000.0,104990.0,1.21990713]
[1749268231370,0.60474911,105000.0,104990.0,1.22943139]
[1749268231574,0.7952253,105000.0,104990.0,1.22943139]
[1749268231965,0.60474875,105000.0,104990.0,1.23895556]
[1749268232167,0.61427255,105000.0,104990.0,1.23895556]
[1749268235319,0.80184108,105000.0,104990.0,1.21990713]
[1749268235511,1.35076823,105000.0,104990.0,1.21990713]
[1749268236786,1.16029204,105000.0,104990.0,1.22943139]
[1749268236989,1.35076823,105000.0,104990.0,1.22943139]
[1749268237763,0.05291394,105000.0,104990.0,1.22943139]
[1749268237969,0.01904434,105010.0,105000.0,0.21904633]
[1749268238170,0.56797158,105010.0,105000.0,0.31544581]
[1749268238342,0.57749411,105010.0,105000.0,0.31544581]
[1749268238547,0.57749402,105010.0,105000.0,0.33194581]
[1749268238760,0.58701665,105010.0,105000.0,0.33194581]
[1749268238890,0.57749402,105010.0,105000.0,0.33194581]
[1749268239103,0.57749402,105010.0,105000.0,0.34694581]
[1749268240063,0.77747479,105010.0,105000.0,0.32789929]
[1749268240267,0.80269769,105010.0,105000.0,0.3154459]
[1749268240478,0.81799769,105010.0,105000.0,0.3154459]
[1749268240676,0.62753964,105010.0,105000.0,0.3154459]
[1749268241090,0.61801674,105010.0,105000.0,0.32496907]
[1749268241861,0.62753955,105010.0,105000.0,0.32496907]
[1749268242356,0.62754037,105010.0,105000.0,0.32496907]
[1749268242672,0.80847607,105010.0,105000.0,0.3154459]
[1749268242876,0.79895363,105010.0,105000.0,0.30592264]
[1749268243078,0.7799081,105010.0,105000.0,0.09639948]
[1749268243283,0.7799081,105010.0,105000.0,0.47635948]
[1749268243679,0.7799081,105010.0,105000.0,0.48588328]
[1749268244241,0.7799081,105010.0,105000.0,0.68588318]
[1749268244441,0.7703852,105010.0,105000.0,0.68588318]
[1749268245846,0.22145805,105010.0,105000.0,0.70493033]
[1749268246049,0.7703852,105010.0,105000.0,0.71445377]
[1749268247009,0.7703852,105010.0,105000.0,0.71445332]
[1749268247318,0.7703852,105010.0,105000.0,0.33449332]
[1749268247527,0.7703852,105010.0,105000.0,0.68588291]
[1749268249314,0.7703852,105010.0,105000.0,0.69540635]
[1749268251934,0.7703852,105010.0,105000.0,0.94240635]
[1749268252063,0.7703852,105010.0,105000.0,0.93288291]
[1749268253868,0.7703852,105010.0,105000.0,0.92335938]
[1749268254139,0.7703852,105010.0,105000.0,0.56244653]
[1749268254343,1.3371513,105010.0,105000.0,0.34339948]
[1749268254641,1.34214656,105010.0,105000.0,0.72331948]
[1749268254950,1.35998601,105010.0,105000.0,0.72331948]
[1749268255862,1.3599866,105010.0,105000.0,0.72331948]
[1749268256233,1.34214656,105010.0,105000.0,0.72331948]
[1749268256442,1.35998674,105010.0,105000.0,0.72331948]
[1749268257181,1.35998724,105010.0,105000.0,0.72331948]
[1749268258853,1.35998791,105010.0,105000.0,0.72331948]
[1749268259626,1.3599883,105010.0,105000.0,0.72331948]
[1749268261217,1.35998867,105010.0,105000.0,0.72331948]
[1749268261951,1.35998903,105010.0,105000.0,0.72331948]
[1749268262499,1.35998903,105010.0,105000.0,0.72186815]
[1749268263354,1.35998907,105010.0,105000.0,0.72186815]
[1749268264720,0.26213499,105010.0,105000.0,0.72186815]
[1749268264945,1.31931235,105010.0,105000.0,0.72186815]
[1749268265164,1.35998929,105010.0,105000.0,0.72186815]
[1749268265420,1.35998929,105010.0,105000.0,0.99630815]
[1749268265657,0.24429226,105010.0,105000.0,0.99630815]
[1749268265874,1.31931235,105010.0,105000.0,0.99630815]
[1749268266089,1.34214656,105010.0,105000.0,0.99630815]
[1749268270903,1.34215725,105010.0,105000.0,0.99630815]
[1749268271284,1.34885122,105010.0,105000.0,0.99630815]
[1749268271638,1.34885124,105010.0,105000.0,0.99630815]
[1749268271838,1.34215725,105010.0,105000.0,0.99630815]
[1749268272042,1.34885124,105010.0,105000.0,0.99630815]
[1749268272330,1.34215725,105010.0,105000.0,0.99630815]
[1749268272537,1.34215725,105010.0,105000.0,0.61048]
[1749268272739,1.34885253,105010.0,105000.0,0.90128]
[1749268274017,1.34215725,105010.0,105000.0,0.90128]
[1749268274199,1.34885197,105010.0,105000.0,0.90128]
[1749268274627,1.34215725,105010.0,105000.0,0.90128]
[1749268274849,1.34885208,105010.0,105000.0,0.90128]
[1749268275058,1.34885208,105010.0,105000.0,0.52144]
[1749268275382,1.34215725,105010.0,105000.0,0.90128]
[1749268275498,1.34885169,105010.0,105000.0,0.90128]
[1749268276373,1.34885186,105010.0,105000.0,0.90128]
[1749268276582,1.34215725,105010.0,105000.0,0.90128]
[1749268276813,1.34885186,105010.0,105000.0,0.90128]
[1749268278263,1.34885212,105010.0,105000.0,0.90128]
[1749268278397,1.34215725,105010.0,105000.0,0.90128]
[1749268278598,1.34885187,105010.0,105000.0,0.90128]
[1749268279264,1.34885187,105010.0,105000.0,0.92128]
[1749268279885,1.34215725,105010.0,105000.0,0.92128]
[1749268280031,1.34885226,105010.0,105000.0,0.92128]
[1749268281346,1.34215725,105010.0,105000.0,0.92128]
[1749268281551,1.3488521,105010.0,105000.0,0.92128]
[1749268281725,1.34885268,105010.0,105000.0,0.92128]
[1749268282907,1.34215725,105010.0,105000.0,0.92128]
[1749268283118,1.34885258,105010.0,105000.0,0.92128]
[1749268283525,1.34215725,105010.0,105000.0,0.92128]
[1749268283768,1.34885349,105010.0,105000.0,0.92128]
[1749268284464,1.3488534,105010.0,105000.0,0.92128]
[1749268284836,1.34215725,105010.0,105000.0,0.92128]
[1749268285725,1.3488534,105010.0,105000.0,0.92128]
[1749268286583,1.3488533,105010.0,105000.0,0.92128]
[1749268286735,1.34215725,105010.0,105000.0,0.92128]
[1749268286941,1.3488533,105010.0,105000.0,0.92128]
[1749268287136,1.34215725,105010.0,105000.0,0.92128]
[1749268287324,1.34885331,105010.0,105000.0,0.92128]
[1749268287993,1.34885331,105010.0,105000.0,0.64684]
[1749268288364,1.34885335,105010.0,105000.0,0.64684]
[1749268288762,1.34215725,105010.0,105000.0,0.64684]
[1749268289080,1.34885335,105010.0,105000.0,0.64684]
[1749268289830,1.34215725,105010.0,105000.0,0.64684]
[1749268290014,1.34885332,105010.0,105000.0,0.64684]
[1749268290178,1.34215725,105010.0,105000.0,0.64684]
[1749268290808,1.34885342,105010.0,105000.0,0.64684]
[1749268291810,1.3488536,105010.0,105000.0,0.64684]
[1749268292506,1.34215725,105010.0,105000.0,0.64684]
[1749268292708,1.3488536,105010.0,105000.0,0.64684]
[1749268293590,1.34885373,105010.0,105000.0,0.64684]
[1749268294236,1.34885377,105010.0,105000.0,0.64684]
[1749268295626,1.348854,105010.0,105000.0,0.64684]
[1749268297438,1.34885437,105010.0,105000.0,0.64684]
[1749268297643,1.34215725,105010.0,105000.0,0.64684]
[1749268297844,1.34885437,105010.0,105000.0,0.64684]
[1749268298628,1.34215725,105010.0,105000.0,0.64684]
[1749268298802,1.34885444,105010.0,105000.0,0.64684]
[1749268299181,1.34215725,105010.0,105000.0,0.267]
[1749268299326,1.3488551,105010.0,105000.0,0.64668]
[1749268299527,1.34215725,105010.0,105000.0,0.64668]
[1749268299732,1.3488551,105010.0,105000.0,0.64668]
[1749268300711,1.34885517,105010.0,105000.0,0.64668]
[1749268301530,1.34885669,105010.0,105000.0,0.64668]
[1749268303079,1.34215725,105010.0,105000.0,0.64668]
[1749268303513,5.83553796,105010.0,105000.0,0.64668]
[1749268303931,5.28661094,105010.0,105000.0,0.267]
[1749268304136,5.83553809,105010.0,105000.0,0.64668]
[1749268304313,5.28661091,105010.0,105000.0,0.64668]
[1749268304730,5.27991137,105010.0,105000.0,0.64668]
[1749268304949,5.28661098,105010.0,105000.0,0.64668]
[1749268306381,5.27991137,105010.0,105000.0,0.64668]
[1749268306517,5.28661091,105010.0,105000.0,0.64668]
[1749268308060,5.27991137,105010.0,105000.0,0.64668]
[1749268308269,5.28661015,105010.0,105000.0,0.64668]
[1749268308511,5.28661013,105010.0,105000.0,0.64668]
[1749268309396,5.28660981,105010.0,105000.0,0.64668]
[1749268310023,5.38700982,105010.0,105000.0,0.64668]
[1749268310242,5.2866098,105010.0,105000.0,0.64668]
[1749268310390,5.27991137,105010.0,105000.0,0.64668]
[1749268310600,5.2866098,105010.0,105000.0,0.64668]
[1749268311057,5.27991137,105010.0,105000.0,0.64668]
[1749268311239,5.2866098,105010.0,105000.0,0.64668]
[1749268312024,5.27991137,105010.0,105000.0,0.64668]
[1749268312254,5.28665152,105010.0,105000.0,0.64668]
[1749268313078,5.28665131,105010.0,105000.0,0.64668]
[1749268313669,5.27995311,105010.0,105000.0,0.64668]
[1749268314021,5.28665131,105010.0,105000.0,0.64668]
[1749268314726,5.27995311,105010.0,105000.0,0.64668]
[1749268315471,5.28665132,105010.0,105000.0,0.64668]
[1749268316807,5.27995311,105010.0,105000.0,0.64668]
[1749268317112,5.27995311,105010.0,105000.0,0.64664]
[1749268317532,5.28665126,105010.0,105000.0,0.64664]
[1749268318223,5.28665118,105010.0,105000.0,0.64664]
[1749268318832,5.27995311,105010.0,105000.0,0.64664]
[1749268319038,5.28665118,105010.0,105000.0,0.64664]
[1749268320185,5.28665113,105010.0,105000.0,0.64664]
[1749268320591,5.27995311,105010.0,105000.0,0.64664]
[1749268320812,5.28665113,105010.0,105000.0,0.64664]
[1749268321187,5.28665114,105010.0,105000.0,0.64664]
[1749268321936,5.28665118,105010.0,105000.0,0.64664]
[1749268322594,5.27995311,105010.0,105000.0,0.64664]
[1749268322784,5.27135118,105010.0,105000.0,0.64664]
[1749268322965,1.34645318,105010.0,105000.0,0.64664]
[1749268323200,1.34645324,105010.0,105000.0,0.83711619]
[1749268323376,1.31787393,105010.0,105000.0,0.83711619]
[1749268323616,1.31787351,105010.0,105000.0,0.64664]
[1749268323829,1.31787351,105010.0,105000.0,0.98486264]
[1749268323830,0.03908381,105010.0,105000.0,0.98486264]
[1749268324013,0.55844923,105010.0,105000.0,0.99438581]
[1749268324223,0.56797158,105010.0,105000.0,0.99438581]
[1749268324757,0.57749411,105010.0,105000.0,0.99438581]
[1749268324957,0.56797158,105010.0,105000.0,0.99438581]
[1749268325181,0.57749411,105010.0,105000.0,0.99438581]
[1749268325397,0.56797158,105010.0,105000.0,0.99438581]
[1749268325781,0.57749411,105010.0,105000.0,0.99438581]
[1749268325983,0.56797158,105010.0,105000.0,0.99438581]
[1749268326383,0.57749411,105010.0,105000.0,0.99438581]
[1749268330386,0.58701683,105010.0,105000.0,0.99438581]
[1749268330565,0.58701674,105010.0,105000.0,0.99438581]
[1749268333935,0.59653946,105010.0,105000.0,0.99438581]
[1749268334703,0.58701738,105010.0,105000.0,0.99438608]
[1749268334970,0.59654019,105010.0,105000.0,1.00390934]
[1749268335414,0.58701821,105010.0,105000.0,1.00390934]
[1749268335855,0.76795363,105010.0,105000.0,0.99438608]
[1749268336496,0.76795363,105010.0,105000.0,0.97533929]
[1749268336715,0.76795363,105010.0,105000.0,0.98486264]
[1749268339275,0.76795363,105010.0,105000.0,1.25930264]
[1749268340197,0.75843091,105010.0,105000.0,1.24977929]
[1749268340401,0.75843091,105010.0,105000.0,1.26882608]
[1749268343537,0.75843091,105010.0,105000.0,1.25930273]
[1749268345775,0.75843091,105010.0,105000.0,1.25930282]
[1749268345980,0.75843091,105010.0,105000.0,1.26882626]
[1749268349124,0.7489081,105010.0,105000.0,1.24025567]
[1749268349366,0.56797268,105010.0,105000.0,1.26882635]
[1749268349661,0.75843073,105010.0,105000.0,1.26882635]
[1749268353047,0.77629071,105010.0,105000.0,1.26882635]
[1749268353293,0.75843073,105010.0,105000.0,1.26882635]
[1749268353703,0.77629071,105010.0,105000.0,1.26882635]
[1749268354464,0.75843073,105010.0,105000.0,1.26882635]
[1749268355079,0.56797268,105010.0,105000.0,1.26882635]
[1749268355281,0.56797268,105010.0,105000.0,1.27834961]
[1749268356352,0.56797268,105010.0,105000.0,1.26882635]
[1749268357286,0.57749494,105010.0,105000.0,1.27834961]
[1749268360232,0.58701784,105010.0,105000.0,1.27834961]
[1749268361700,0.58701784,105010.0,105000.0,1.26174961]
[1749268363781,0.77747589,105010.0,105000.0,1.26174979]
[1749268364689,0.77747589,105010.0,105000.0,1.24604979]
[1749268365236,0.58701784,105010.0,105000.0,1.24604979]
[1749268365447,0.58701784,105010.0,105000.0,1.25557305]
[1749268367475,0.58701784,105010.0,105000.0,1.24604979]
[1749268369943,0.58701784,105010.0,105000.0,1.23652644]
[1749268370270,0.58701784,105010.0,105000.0,1.24604979]
[1749268372040,0.76795354,105010.0,105000.0,1.23652662]
[1749268373961,0.76795354,105010.0,105000.0,1.24604997]
[1749268374201,0.76795354,105010.0,105000.0,1.23652662]
[1749268375719,0.56797158,105010.0,105000.0,1.23652662]
[1749268375862,0.59653974,105010.0,105000.0,1.24604988]
[1749268376045,0.58701693,105010.0,105000.0,1.25557305]
[1749268376247,0.58701775,105010.0,105000.0,1.23652662]
[1749268376452,0.58701775,105010.0,105000.0,1.24604997]
[1749268376849,0.7774758,105010.0,105000.0,0.84736318]
[1749268377046,0.76795345,105010.0,105000.0,1.23604662]
[1749268379496,0.2190263,105010.0,105000.0,1.24556997]
[1749268379917,0.76795345,105010.0,105000.0,1.24556997]
[1749268380085,0.76795345,105010.0,105000.0,1.24557033]
[1749268381030,0.75843082,105010.0,105000.0,0.93616318]
[1749268381235,0.75843082,105010.0,105000.0,1.22652309]
[1749268381375,0.75843082,105010.0,105000.0,1.23604662]
[1749268381587,0.75843082,105010.0,105000.0,1.22652318]
[1749268382024,0.75843082,105010.0,105000.0,1.2360468]
[1749268383509,0.7489081,105010.0,105000.0,1.2360468]
[1749268383715,0.7489081,105010.0,105000.0,1.24557033]
[1749268384185,0.7489081,105010.0,105000.0,1.01699948]
[1749268384186,1.34397099,105010.0,105000.0,1.01699948]
[1749268384397,0.79504384,105010.0,105000.0,1.01699948]
[1749268385315,0.79504384,105010.0,105000.0,0.63783948]
[1749268385526,0.79504384,105010.0,105000.0,1.01695948]
[1749268385938,1.34397099,105010.0,105000.0,1.01695948]
[1749268386561,0.79504384,105010.0,105000.0,1.01695948]
[1749268391260,0.79504384,105010.0,105000.0,1.02648328]
[1749268391490,0.79504384,105010.0,105000.0,1.01695948]
[1749268392969,0.79504384,105010.0,105000.0,0.63783948]
[1749268393178,0.79504384,105010.0,105000.0,1.02644328]
[1749268394465,0.79504384,105010.0,105000.0,1.21691947]
[1749268395711,0.79504384,105010.0,105000.0,1.20739567]
[1749268396234,0.79504384,105010.0,105000.0,1.21691947]
[1749268396869,0.7721852,105010.0,105000.0,1.22644318]
[1749268397087,0.7721852,105010.0,105000.0,1.21691947]
[1749268397926,0.7721852,105010.0,105000.0,1.22644318]
[1749268398147,0.7721852,105010.0,105000.0,1.21691947]
[1749268399580,0.7721852,105010.0,105000.0,1.22644318]
[1749268401196,0.7721852,105010.0,105000.0,1.20739567]
[1749268401398,0.7721852,105010.0,105000.0,1.21691938]
[1749268402441,0.78170801,105010.0,105000.0,1.226443]
[1749268402636,0.78170801,105010.0,105000.0,1.21691938]
[1749268402885,0.78170801,105010.0,105000.0,1.22644318]
[1749268405449,0.23278086,105010.0,105000.0,1.21691947]
[1749268405642,0.23278086,105010.0,105000.0,1.22644318]
[1749268406131,0.24230339,105010.0,105000.0,1.2359668]
[1749268406809,0.22590339,105010.0,105000.0,1.2359668]
[1749268407123,0.22590339,105010.0,105000.0,1.24549033]
[1749268407321,0.22590339,105010.0,105000.0,1.2359668]
[1749268408930,0.22590339,105010.0,105000.0,1.24549033]
[1749268409656,0.22590339,105010.0,105000.0,1.2359668]
[1749268409835,0.22590339,105010.0,105000.0,1.24549033]
[1749268410219,0.01904534,105010.0,105000.0,1.24549033]
[1749268410422,0.02142668,105010.0,105000.0,1.24549033]
[1749268411256,0.02142668,105010.0,105000.0,1.25501377]
[1749268411461,0.02142668,105010.0,105000.0,0.86641033]
[1749268411660,0.02142668,105010.0,105000.0,1.24541033]
[1749268412901,0.02142668,105010.0,105000.0,1.25493377]
[1749268413344,0.02142668,105010.0,105000.0,1.24541033]
[1749268413754,0.02142668,105010.0,105000.0,1.25493377]
[1749268413952,0.02142668,105010.0,105000.0,1.24540997]
[1749268414373,0.02142668,105010.0,105000.0,1.23588653]
[1749268415198,0.02142668,105010.0,105000.0,1.25493332]
[1749268415408,0.22586204,105020.0,105000.0,1.26708527]
[1749268415635,0.23538376,105020.0,105010.0,0.28874095]
[1749268415819,0.25168376,105020.0,105010.0,0.38514043]
[1749268416019,0.24216204,105020.0,105010.0,0.37561753]
[1749268420266,0.24216204,105020.0,105010.0,0.18515948]
[1749268422600,0.23148077,105010.0,105000.0,0.54144]
[1749268422802,0.2410034,105010.0,105000.0,1.20715567]
[1749268423215,0.2410034,105010.0,105000.0,1.21667947]
[1749268423411,0.2410034,105010.0,105000.0,0.82831567]
[1749268423562,0.2410034,105010.0,105000.0,1.21667947]
[1749268424431,0.2095034,105010.0,105000.0,1.21667947]
[1749268424771,0.2095034,105010.0,105000.0,1.20715567]
[1749268424983,0.2247034,105010.0,105000.0,1.21667947]
[1749268428136,0.2412034,105010.0,105000.0,1.21667947]
[1749268428339,0.2412034,105010.0,105000.0,1.22620318]
[1749268428557,0.2412034,105010.0,105000.0,1.21667947]
[1749268428915,0.2412034,105010.0,105000.0,1.20715567]
[1749268429077,0.2412034,105010.0,105000.0,1.21667947]
[1749268429488,0.2095034,105010.0,105000.0,1.21667947]
[1749268430703,0.2095034,105010.0,105000.0,1.20715567]
[1749268430908,0.2095034,105010.0,105000.0,1.21667947]
[1749268431521,0.19998077,105010.0,105000.0,1.21667929]
[1749268431719,0.19998077,105010.0,105000.0,1.21667938]
[1749268432075,0.19998077,105010.0,105000.0,1.21667947]
[1749268432680,0.19998077,105010.0,105000.0,1.22620318]
[1749268432912,0.19998077,105010.0,105000.0,1.21667947]
[1749268433726,0.19998077,105010.0,105000.0,1.22620318]
[1749268433934,0.19998077,105010.0,105000.0,1.20715567]
[1749268434104,0.19998077,105010.0,105000.0,1.21667947]
[1749268435064,0.19998077,105010.0,105000.0,1.22620318]
[1749268435267,0.19998077,105010.0,105000.0,1.21667947]
[1749268435582,0.21658077,105010.0,105000.0,1.21667947]
[1749268436285,0.21658077,105010.0,105000.0,1.22620318]
[1749268436833,0.21658077,105010.0,105000.0,1.21667947]
[1749268437030,0.21658077,105010.0,105000.0,1.22620318]
[1749268437451,0.21658077,105010.0,105000.0,1.21667947]
[1749268438790,0.21658077,105010.0,105000.0,1.22620318]
[1749268440050,0.19998077,105010.0,105000.0,1.22620318]
[1749268440644,0.19998077,105010.0,105000.0,0.82831567]
[1749268440881,0.23088077,105010.0,105000.0,0.92024]
[1749268442138,0.23088077,105010.0,105000.0,0.54144]
[1749268442344,0.23088077,105010.0,105000.0,0.92024]
[1749268442778,0.57088077,105010.0,105000.0,0.54144]
[1749268443012,4.56636254,105010.0,105000.0,0.92024]
[1749268443218,4.59499054,105010.0,105000.0,0.92024]
[1749268443448,4.56636283,105010.0,105000.0,0.92024]
[1749268443677,4.55966927,105010.0,105000.0,0.92024]
[1749268444084,4.56636248,105010.0,105000.0,0.92024]
[1749268444304,4.53779266,105010.0,105000.0,0.92024]
[1749268445196,4.53109945,105010.0,105000.0,0.92024]
[1749268445810,4.53779266,105010.0,105000.0,0.92024]
[1749268446236,4.53779377,105010.0,105000.0,0.92024]
[1749268446643,4.53778954,105010.0,105000.0,0.92024]
[1749268447587,4.53778954,105010.0,105000.0,0.02]
[1749268447811,4.56635936,105010.0,105000.0,0.6458]
[1749268448023,4.56635963,105010.0,105000.0,0.6458]
[1749268448691,4.55966927,105010.0,105000.0,0.6458]
[1749268448917,4.56636006,105010.0,105000.0,0.6458]
[1749268449135,5.17190039,105010.0,105000.0,0.267]
[1749268449345,5.17190036,105010.0,105000.0,0.6458]
[1749268450072,5.17189616,105010.0,105000.0,0.6458]
[1749268450276,5.16158588,105010.0,105000.0,0.6458]
[1749268450478,5.17110872,105010.0,105000.0,0.6458]
[1749268451401,5.17110529,105010.0,105000.0,0.6458]
[1749268451620,5.17101911,105010.0,105000.0,0.6458]
[1749268451839,5.17101926,105010.0,105000.0,0.6458]
[1749268452477,5.17101926,105010.0,105000.0,0.55712]
[1749268452697,5.20919102,105010.0,105000.0,0.64576]
[1749268453108,5.17101926,105010.0,105000.0,0.64576]
[1749268453510,5.16433589,105010.0,105000.0,0.64576]
[1749268453933,5.17101771,105010.0,105000.0,0.64576]
[1749268454669,5.17101746,105010.0,105000.0,0.64576]
[1749268455333,5.17101715,105010.0,105000.0,0.64576]
[1749268456375,5.17101665,105010.0,105000.0,0.64576]
[1749268456953,5.14249471,105010.0,105000.0,0.64576]
[1749268457166,5.14249446,105010.0,105000.0,0.64576]
[1749268457336,5.1424944,105010.0,105000.0,0.64576]
[1749268457535,5.14249434,105010.0,105000.0,0.64576]
[1749268457764,5.14249439,105010.0,105000.0,0.64576]
[1749268457964,5.14249446,105010.0,105000.0,0.64576]
[1749268458161,5.1710164,105010.0,105000.0,0.64576]
[1749268458366,5.17101662,105010.0,105000.0,0.64576]
[1749268460269,5.17101704,105010.0,105000.0,0.64576]
[1749268462023,5.17101704,105010.0,105000.0,0.267]
[1749268462024,5.17101737,105010.0,105000.0,0.267]
[1749268462226,5.14249543,105010.0,105000.0,0.267]
[1749268462433,5.14249629,105010.0,105000.0,0.64572]
[1749268463192,5.17101906,105010.0,105000.0,0.64572]
[1749268463805,5.17101914,105010.0,105000.0,0.64572]
[1749268465742,5.16433589,105010.0,105000.0,0.64572]
[1749268465953,5.17102142,105010.0,105000.0,0.64572]
[1749268466362,5.17102197,105010.0,105000.0,0.64572]
[1749268467224,5.16433589,105010.0,105000.0,0.64572]
[1749268467463,5.17102627,105010.0,105000.0,0.64572]
[1749268467665,5.27132627,105010.0,105000.0,0.64572]
[1749268467894,5.27132636,105010.0,105000.0,0.64572]
[1749268468769,5.27132702,105010.0,105000.0,0.64572]
[1749268468972,5.26463589,105010.0,105000.0,0.64572]
[1749268469208,5.27132706,105010.0,105000.0,0.64572]
[1749268469618,5.30949882,105010.0,105000.0,0.64572]
[1749268470284,5.30949921,105010.0,105000.0,0.64572]